[Event "Titled Tuesday Blitz April 26 Late 2022"]
[White "volunteers1998"]
[Black "Donatti, Alvaro"]
[BlackFideId "3000303"]
[WhiteElo "2281"]
[BlackElo "2138"]
[Result "1-0"]
[Round "07"]
[TimeControl "180+1"]
[Date "2022.04.26"]
[WhiteClock "0:00:35"]
[BlackClock "0:01:08"]

1. e4 {[%clk 0:02:59]}  c5 {[%clk 0:02:58]} 2. Nf3 {[%clk 0:03:00]}  e6 {[%clk 0:02:58]} 3. d4 {[%clk 0:02:58]}  cxd4 {[%clk 0:02:58]} 4. Nxd4 {[%clk 0:02:57]}  Bc5 {[%clk 0:02:59]} 5. Nb3 {[%clk 0:02:53]}  Bb6 {[%clk 0:02:58]} 6. Nc3 {[%clk 0:02:47]}  Nc6 {[%clk 0:02:58]} 7. Be2 {[%clk 0:02:41]}  a6 {[%clk 0:02:57]} 8. O-O {[%clk 0:02:39]}  Nge7 {[%clk 0:02:56]} 9. Kh1 {[%clk 0:02:33]}  O-O {[%clk 0:02:56]} 10. f4 {[%clk 0:02:26]}  f5 {[%clk 0:02:50]} 11. e5 {[%clk 0:02:23]}  Ba7 {[%clk 0:02:48]} 12. Bf3 {[%clk 0:02:15]}  b5 {[%clk 0:02:46]} 13. Qe1 {[%clk 0:02:10]}  Bb7 {[%clk 0:02:46]} 14. Be3 {[%clk 0:02:05]}  Bxe3 {[%clk 0:02:42]} 15. Qxe3 {[%clk 0:02:06]}  d5 {[%clk 0:02:36]} 16. exd6 {[%clk 0:02:04]}  Qxd6 {[%clk 0:02:35]} 17. Rad1 {[%clk 0:02:02]}  Qc7 {[%clk 0:02:28]} 18. Qxe6+ {[%clk 0:02:00]}  Kh8 {[%clk 0:02:27]} 19. Nd5 {[%clk 0:01:52]}  Nxd5 {[%clk 0:02:24]} 20. Rxd5 {[%clk 0:01:53]}  Qxf4 {[%clk 0:02:21]} 21. Rd7 {[%clk 0:01:49]}  Rae8 {[%clk 0:02:07]} 22. Qd6 {[%clk 0:01:46]}  Qxd6 {[%clk 0:02:02]} 23. Rxd6 {[%clk 0:01:47]}  Rf6 {[%clk 0:01:51]} 24. Rxf6 {[%clk 0:01:45]}  gxf6 {[%clk 0:01:50]} 25. Kg1 {[%clk 0:01:37]}  Re5 {[%clk 0:01:40]} 26. Kf2 {[%clk 0:01:32]}  Na5 {[%clk 0:01:38]} 27. Nxa5 {[%clk 0:01:29]}  Bxf3 {[%clk 0:01:30]} 28. Kxf3 {[%clk 0:01:26]}  Rc5 {[%clk 0:01:29]} 29. Rf2 {[%clk 0:01:20]}  b4 {[%clk 0:01:25]} 30. Nb3 {[%clk 0:01:18]}  Rd5 {[%clk 0:01:25]} 31. Rd2 {[%clk 0:01:14]}  Re5 {[%clk 0:01:23]} 32. Nd4 {[%clk 0:01:09]}  Kg7 {[%clk 0:01:22]} 33. Kf4 {[%clk 0:01:06]}  Kg6 {[%clk 0:01:19]} 34. Re2 {[%clk 0:01:02]}  Rd5 {[%clk 0:01:19]} 35. c3 {[%clk 0:00:59]}  bxc3 {[%clk 0:01:17]} 36. bxc3 {[%clk 0:00:58]}  Rc5 {[%clk 0:01:17]} 37. Re3 {[%clk 0:00:51]}  Ra5 {[%clk 0:01:14]} 38. Rg3+ {[%clk 0:00:49]}  Kf7 {[%clk 0:01:12]} 39. Nxf5 {[%clk 0:00:47]}  Rxa2 {[%clk 0:01:11]} 40. Rg7+ {[%clk 0:00:45]}  Ke6 {[%clk 0:01:11]} 41. g4 {[%clk 0:00:44]}  h5 {[%clk 0:01:08]} 42. h3 {[%clk 0:00:40]}  hxg4 {[%clk 0:01:07]} 43. hxg4 {[%clk 0:00:38]}  Rc2 {[%clk 0:01:08]} 44. Nd4+ {[%clk 0:00:35]} 1-0


[Site "https://www.chess.com"]

[Event "Titled Tuesday Blitz April 26 Late 2022"]
[White "Ansh M Shah"]
[Black "Derraugh, Geordie"]
[WhiteFideId "25033379"]
[BlackFideId "2603950"]
[WhiteElo "1819"]
[BlackElo "2116"]
[Result "0-1"]
[Round "08"]
[TimeControl "180+1"]
[Date "2022.04.26"]
[WhiteClock "0:00:10"]
[BlackClock "0:00:10"]

1. d4 {[%clk 0:03:00]}  Nf6 {[%clk 0:02:25]} 2. c4 {[%clk 0:03:00]}  g6 {[%clk 0:02:23]} 3. Nf3 {[%clk 0:03:00]}  Bg7 {[%clk 0:02:22]} 4. g3 {[%clk 0:03:01]}  d5 {[%clk 0:02:22]} 5. Bg2 {[%clk 0:03:02]}  c6 {[%clk 0:02:22]} 6. O-O {[%clk 0:03:03]}  O-O {[%clk 0:02:22]} 7. Nc3 {[%clk 0:03:02]}  dxc4 {[%clk 0:02:22]} 8. e4 {[%clk 0:03:02]}  Nbd7 {[%clk 0:02:18]} 9. a4 {[%clk 0:03:02]}  a5 {[%clk 0:02:16]} 10. Qe2 {[%clk 0:03:00]}  Nb6 {[%clk 0:02:16]} 11. Rd1 {[%clk 0:03:00]}  e6 {[%clk 0:02:14]} 12. Be3 {[%clk 0:03:00]}  Nfd7 {[%clk 0:02:12]} 13. Nd2 {[%clk 0:02:59]}  Qe7 {[%clk 0:02:11]} 14. Nxc4 {[%clk 0:02:58]}  Qb4 {[%clk 0:02:05]} 15. Na3 {[%clk 0:02:45]}  Nxa4 {[%clk 0:01:55]} 16. Nxa4 {[%clk 0:02:43]}  Qxa4 {[%clk 0:01:55]} 17. Nc4 {[%clk 0:02:38]}  Qb5 {[%clk 0:01:52]} 18. Bf1 {[%clk 0:02:36]}  e5 {[%clk 0:01:43]} 19. d5 {[%clk 0:02:34]}  a4 {[%clk 0:01:15]} 20. Qc2 {[%clk 0:01:41]}  Qb4 {[%clk 0:01:02]} 21. dxc6 {[%clk 0:01:04]}  bxc6 {[%clk 0:01:02]} 22. Nd6 {[%clk 0:01:05]}  Nf6 {[%clk 0:00:52]} 23. Bc5 {[%clk 0:01:01]}  Qb8 {[%clk 0:00:48]} 24. Rxa4 {[%clk 0:00:52]}  Rxa4 {[%clk 0:00:47]} 25. Qxa4 {[%clk 0:00:53]}  Bg4 {[%clk 0:00:47]} 26. Rb1 {[%clk 0:00:44]}  Bd7 {[%clk 0:00:36]} 27. b4 {[%clk 0:00:43]}  Rd8 {[%clk 0:00:34]} 28. f3 {[%clk 0:00:39]}  Bf8 {[%clk 0:00:33]} 29. Rd1 {[%clk 0:00:37]}  Qc7 {[%clk 0:00:26]} 30. Rd2 {[%clk 0:00:22]}  Be6 {[%clk 0:00:25]} 31. Qd1 {[%clk 0:00:21]}  Nd7 {[%clk 0:00:13]} 32. Nc4 {[%clk 0:00:10]}  Bxc5+ {[%clk 0:00:12]} 33. bxc5 {[%clk 0:00:09]}  Rb8 {[%clk 0:00:12]} 34. Nd6 {[%clk 0:00:07]}  Nxc5 {[%clk 0:00:12]} 35. Qe2 {[%clk 0:00:05]}  Rb1 {[%clk 0:00:08]} 36. Qf2 {[%clk 0:00:04]}  Nb3 {[%clk 0:00:08]} 37. Kg2 {[%clk 0:00:03]}  Nxd2 {[%clk 0:00:08]} 38. Qxd2 {[%clk 0:00:04]}  Rb8 {[%clk 0:00:08]} 39. Nc4 {[%clk 0:00:03]}  Rd8 {[%clk 0:00:08]} 40. Qf2 {[%clk 0:00:03]}  Qd7 {[%clk 0:00:07]} 41. Qe3 {[%clk 0:00:03]}  Qd4 {[%clk 0:00:07]} 42. Qxd4 {[%clk 0:00:03]}  exd4 {[%clk 0:00:08]} 43. Ne5 {[%clk 0:00:04]}  c5 {[%clk 0:00:08]} 44. Nc6 {[%clk 0:00:04]}  Rd6 {[%clk 0:00:07]} 45. Na5 {[%clk 0:00:04]}  Rb6 {[%clk 0:00:06]} 46. Nc4 {[%clk 0:00:04]}  Bxc4 {[%clk 0:00:06]} 47. Bxc4 {[%clk 0:00:05]}  Rb2+ {[%clk 0:00:07]} 48. Kh3 {[%clk 0:00:05]}  Rc2 {[%clk 0:00:07]} 49. Bd3 {[%clk 0:00:05]}  Rc3 {[%clk 0:00:07]} 50. Bb5 {[%clk 0:00:05]}  d3 {[%clk 0:00:08]} 51. Kg4 {[%clk 0:00:06]}  d2 {[%clk 0:00:08]} 52. Be2 {[%clk 0:00:06]}  Re3 {[%clk 0:00:08]} 53. Bd1 {[%clk 0:00:06]}  Re1 {[%clk 0:00:09]} 54. Bc2 {[%clk 0:00:07]}  d1=Q {[%clk 0:00:09]} 55. Bxd1 {[%clk 0:00:08]}  Rxd1 {[%clk 0:00:09]} 56. e5 {[%clk 0:00:09]}  Re1 {[%clk 0:00:10]} 57. f4 {[%clk 0:00:10]}  c4 {[%clk 0:00:10]} 58. h4 {[%clk 0:00:10]}  c3 {[%clk 0:00:11]} 59. h5 {[%clk 0:00:11]}  c2 {[%clk 0:00:11]} 60. Kg5 {[%clk 0:00:12]}  gxh5 {[%clk 0:00:12]} 61. g4 {[%clk 0:00:13]}  c1=Q {[%clk 0:00:11]} 62. e6 {[%clk 0:00:12]}  Re5+ {[%clk 0:00:10]} 63. Kf6 {[%clk 0:00:09]}  Qxf4+ {[%clk 0:00:10]} 64. Ke7 {[%clk 0:00:09]}  Rxe6+ {[%clk 0:00:10]} 65. Kd8 {[%clk 0:00:09]}  Qd4+ {[%clk 0:00:09]} 66. Kc8 {[%clk 0:00:09]}  Rc6+ {[%clk 0:00:09]} 67. Kb7 {[%clk 0:00:10]}  Qb6+ {[%clk 0:00:09]} 68. Ka8 {[%clk 0:00:10]}  Rc8# {[%clk 0:00:10]} 0-1


[Site "https://www.chess.com"]

[Event "Titled Tuesday Blitz April 26 Late 2022"]
[White "Atanejhad, Sahebali"]
[Black "Schekachikhin, Maksim"]
[WhiteFideId "12506664"]
[BlackFideId "24177830"]
[WhiteElo "1953"]
[BlackElo "2230"]
[Result "0-1"]
[Round "08"]
[TimeControl "180+1"]
[Date "2022.04.26"]
[WhiteClock "0:00:08"]
[BlackClock "0:01:42"]

1. d4 {[%clk 0:02:59]}  Nf6 {[%clk 0:02:59]} 2. c4 {[%clk 0:02:58]}  b6 {[%clk 0:02:59]} 3. Nf3 {[%clk 0:02:58]}  Bb7 {[%clk 0:02:59]} 4. g3 {[%clk 0:02:57]}  e6 {[%clk 0:02:58]} 5. Bg2 {[%clk 0:02:57]}  Bb4+ {[%clk 0:02:58]} 6. Nbd2 {[%clk 0:02:55]}  O-O {[%clk 0:02:57]} 7. O-O {[%clk 0:02:54]}  d5 {[%clk 0:02:56]} 8. Ne5 {[%clk 0:02:53]}  Nbd7 {[%clk 0:02:55]} 9. a3 {[%clk 0:02:35]}  Bd6 {[%clk 0:02:54]} 10. Nxd7 {[%clk 0:02:04]}  Qxd7 {[%clk 0:02:55]} 11. b4 {[%clk 0:01:58]}  c5 {[%clk 0:02:51]} 12. dxc5 {[%clk 0:01:43]}  bxc5 {[%clk 0:02:52]} 13. Bb2 {[%clk 0:01:43]}  d4 {[%clk 0:02:37]} 14. b5 {[%clk 0:01:32]}  e5 {[%clk 0:02:33]} 15. Bxb7 {[%clk 0:01:27]}  Qxb7 {[%clk 0:02:33]} 16. f3 {[%clk 0:01:28]}  e4 {[%clk 0:02:32]} 17. Nxe4 {[%clk 0:01:25]}  Nxe4 {[%clk 0:02:33]} 18. fxe4 {[%clk 0:01:26]}  Qxe4 {[%clk 0:02:33]} 19. Qd3 {[%clk 0:01:26]}  Rfe8 {[%clk 0:02:30]} 20. Rf2 {[%clk 0:01:06]}  Qb7 {[%clk 0:02:26]} 21. Bc1 {[%clk 0:01:03]}  Re6 {[%clk 0:02:24]} 22. Bd2 {[%clk 0:00:52]}  Rae8 {[%clk 0:02:23]} 23. Raf1 {[%clk 0:00:50]}  f6 {[%clk 0:02:22]} 24. a4 {[%clk 0:00:46]}  Qe7 {[%clk 0:02:20]} 25. Re1 {[%clk 0:00:32]}  h5 {[%clk 0:02:20]} 26. a5 {[%clk 0:00:29]}  h4 {[%clk 0:02:20]} 27. gxh4 {[%clk 0:00:27]}  Re4 {[%clk 0:02:19]} 28. Rg2 {[%clk 0:00:26]}  Rxh4 {[%clk 0:02:15]} 29. Qf3 {[%clk 0:00:26]}  Qe5 {[%clk 0:02:12]} 30. h3 {[%clk 0:00:19]}  Qe4 {[%clk 0:01:57]} 31. Qxe4 {[%clk 0:00:15]}  Rhxe4 {[%clk 0:01:55]} 32. b6 {[%clk 0:00:13]}  axb6 {[%clk 0:01:54]} 33. axb6 {[%clk 0:00:14]}  Rb8 {[%clk 0:01:54]} 34. Rb1 {[%clk 0:00:13]}  Rb7 {[%clk 0:01:55]} 35. Ba5 {[%clk 0:00:13]}  Kf7 {[%clk 0:01:51]} 36. Kf2 {[%clk 0:00:12]}  Re3 {[%clk 0:01:50]} 37. h4 {[%clk 0:00:10]}  Rh3 {[%clk 0:01:47]} 38. Rg4 {[%clk 0:00:10]}  Rh2+ {[%clk 0:01:43]} 39. Kf3 {[%clk 0:00:09]}  Re7 {[%clk 0:01:42]} 40. Rxd4 {[%clk 0:00:08]}  cxd4 {[%clk 0:01:42]} 0-1


[Site "https://www.chess.com"]

[Event "Titled Tuesday Blitz April 26 Late 2022"]
[White "Balint, Vilmos"]
[Black "Richter, Nils"]
[WhiteFideId "718050"]
[BlackFideId "12990809"]
[WhiteElo "2059"]
[BlackElo "2243"]
[Result "0-1"]
[Round "08"]
[TimeControl "180+1"]
[Date "2022.04.26"]
[WhiteClock "0:01:34"]
[BlackClock "0:01:05"]

1. d4 {[%clk 0:02:57]}  d5 {[%clk 0:02:59]} 2. c4 {[%clk 0:02:57]}  c6 {[%clk 0:02:59]} 3. Nc3 {[%clk 0:02:56]}  Nf6 {[%clk 0:02:59]} 4. cxd5 {[%clk 0:02:57]}  cxd5 {[%clk 0:02:59]} 5. Bf4 {[%clk 0:02:57]}  a6 {[%clk 0:02:59]} 6. e3 {[%clk 0:02:58]}  Nc6 {[%clk 0:02:59]} 7. Nf3 {[%clk 0:02:58]}  Bf5 {[%clk 0:02:58]} 8. Bd3 {[%clk 0:02:56]}  Bxd3 {[%clk 0:02:58]} 9. Qxd3 {[%clk 0:02:56]}  e6 {[%clk 0:02:59]} 10. O-O {[%clk 0:02:56]}  Bd6 {[%clk 0:02:59]} 11. a3 {[%clk 0:02:56]}  Bxf4 {[%clk 0:02:58]} 12. exf4 {[%clk 0:02:57]}  O-O {[%clk 0:02:58]} 13. Ne5 {[%clk 0:02:57]}  Rc8 {[%clk 0:02:56]} 14. Rac1 {[%clk 0:02:57]}  Qb6 {[%clk 0:02:54]} 15. Ne2 {[%clk 0:02:55]}  Ne4 {[%clk 0:02:47]} 16. f3 {[%clk 0:02:53]}  Nd6 {[%clk 0:02:47]} 17. Nd7 {[%clk 0:02:51]}  Qxb2 {[%clk 0:02:39]} 18. Nxf8 {[%clk 0:02:51]}  Kxf8 {[%clk 0:02:36]} 19. Rc2 {[%clk 0:02:51]}  Qb6 {[%clk 0:02:33]} 20. Rfc1 {[%clk 0:02:52]}  Nc4 {[%clk 0:02:31]} 21. g3 {[%clk 0:02:47]}  Kg8 {[%clk 0:02:30]} 22. Kg2 {[%clk 0:02:47]}  h6 {[%clk 0:02:29]} 23. Rc3 {[%clk 0:02:47]}  N6a5 {[%clk 0:02:26]} 24. Rb1 {[%clk 0:02:44]}  Qd8 {[%clk 0:02:23]} 25. Nc1 {[%clk 0:02:40]}  b5 {[%clk 0:02:22]} 26. a4 {[%clk 0:02:40]}  bxa4 {[%clk 0:02:18]} 27. Rb4 {[%clk 0:02:40]}  a3 {[%clk 0:02:16]} 28. Ra4 {[%clk 0:02:40]}  Nb2 {[%clk 0:02:12]} 29. Rxc8 {[%clk 0:02:18]}  Qxc8 {[%clk 0:02:13]} 30. Qxa3 {[%clk 0:02:17]}  Nxa4 {[%clk 0:02:10]} 31. Qxa4 {[%clk 0:02:18]}  Qxc1 {[%clk 0:02:07]} 32. Qxa5 {[%clk 0:02:18]}  Qb2+ {[%clk 0:02:07]} 33. Kh3 {[%clk 0:02:18]}  Qxd4 {[%clk 0:02:06]} 34. Qxa6 {[%clk 0:02:18]}  Qd3 {[%clk 0:02:00]} 35. Qc8+ {[%clk 0:02:16]}  Kh7 {[%clk 0:01:58]} 36. Qc7 {[%clk 0:02:15]}  Qf1+ {[%clk 0:01:49]} 37. Kh4 {[%clk 0:02:13]}  f5 {[%clk 0:01:26]} 38. Qc3 {[%clk 0:01:57]}  Qf2 {[%clk 0:01:17]} 39. h3 {[%clk 0:01:53]}  d4 {[%clk 0:01:17]} 40. Qd3 {[%clk 0:01:47]}  Qe3 {[%clk 0:01:16]} 41. Qc4 {[%clk 0:01:45]}  d3 {[%clk 0:01:07]} 42. g4 {[%clk 0:01:34]}  Qf2+ {[%clk 0:01:04]} 43. Kh5 {[%clk 0:01:34]}  g6# {[%clk 0:01:05]} 0-1


[Site "https://www.chess.com"]

[Event "Titled Tuesday Blitz April 26 Late 2022"]
[White "Bas Mas, Jose Joaquin"]
[Black "Yurovskykh, Oleksandr"]
[WhiteFideId "22219064"]
[BlackFideId "14134020"]
[WhiteElo "2212"]
[BlackElo "2292"]
[Result "0-1"]
[Round "08"]
[TimeControl "180+1"]
[Date "2022.04.26"]
[WhiteClock "0:00:05"]
[BlackClock "0:00:14"]

1. e4 {[%clk 0:03:00]}  d5 {[%clk 0:02:58]} 2. exd5 {[%clk 0:03:00]}  Qxd5 {[%clk 0:02:58]} 3. Nc3 {[%clk 0:03:00]}  Qd8 {[%clk 0:02:56]} 4. d4 {[%clk 0:02:59]}  Nf6 {[%clk 0:02:57]} 5. Bc4 {[%clk 0:02:58]}  a6 {[%clk 0:02:56]} 6. a4 {[%clk 0:02:57]}  Nc6 {[%clk 0:02:54]} 7. Nge2 {[%clk 0:02:57]}  Bf5 {[%clk 0:02:53]} 8. O-O {[%clk 0:02:55]}  Nb4 {[%clk 0:02:50]} 9. Bb3 {[%clk 0:02:55]}  e6 {[%clk 0:02:50]} 10. Ng3 {[%clk 0:02:46]}  Bg6 {[%clk 0:02:50]} 11. Bg5 {[%clk 0:02:41]}  Be7 {[%clk 0:02:50]} 12. Nce2 {[%clk 0:02:29]}  O-O {[%clk 0:02:44]} 13. Nf4 {[%clk 0:02:27]}  Nbd5 {[%clk 0:02:09]} 14. Nxg6 {[%clk 0:02:25]}  hxg6 {[%clk 0:02:10]} 15. Bd2 {[%clk 0:02:21]}  c5 {[%clk 0:02:06]} 16. c4 {[%clk 0:02:10]}  Nb4 {[%clk 0:02:02]} 17. Bxb4 {[%clk 0:02:08]}  cxb4 {[%clk 0:02:03]} 18. Qd3 {[%clk 0:01:55]}  Qc7 {[%clk 0:01:57]} 19. Rad1 {[%clk 0:01:46]}  Rfd8 {[%clk 0:01:57]} 20. Qe2 {[%clk 0:01:37]}  Bd6 {[%clk 0:01:49]} 21. Ne4 {[%clk 0:01:34]}  Bxh2+ {[%clk 0:01:48]} 22. Kh1 {[%clk 0:01:35]}  Nxe4 {[%clk 0:01:39]} 23. Qxe4 {[%clk 0:01:35]}  Bd6 {[%clk 0:01:40]} 24. c5 {[%clk 0:01:24]}  Be7 {[%clk 0:01:39]} 25. Rd3 {[%clk 0:01:18]}  Bf6 {[%clk 0:01:36]} 26. Rfd1 {[%clk 0:01:13]}  Rd7 {[%clk 0:01:34]} 27. d5 {[%clk 0:01:05]}  exd5 {[%clk 0:01:24]} 28. Qxb4 {[%clk 0:01:05]}  d4 {[%clk 0:01:18]} 29. Qb6 {[%clk 0:00:47]}  Qxb6 {[%clk 0:01:15]} 30. cxb6 {[%clk 0:00:48]}  Rd6 {[%clk 0:01:16]} 31. a5 {[%clk 0:00:47]}  Rc8 {[%clk 0:01:11]} 32. Re1 {[%clk 0:00:46]}  g5 {[%clk 0:01:01]} 33. g4 {[%clk 0:00:43]}  g6 {[%clk 0:00:59]} 34. Kg2 {[%clk 0:00:33]}  Rc5 {[%clk 0:00:56]} 35. Re8+ {[%clk 0:00:32]}  Kg7 {[%clk 0:00:55]} 36. Rb8 {[%clk 0:00:31]}  Rd7 {[%clk 0:00:46]} 37. Ba4 {[%clk 0:00:20]}  Re7 {[%clk 0:00:43]} 38. b4 {[%clk 0:00:20]}  Rc3 {[%clk 0:00:33]} 39. Rxc3 {[%clk 0:00:20]}  dxc3 {[%clk 0:00:33]} 40. Rc8 {[%clk 0:00:20]}  Be5 {[%clk 0:00:32]} 41. b5 {[%clk 0:00:19]}  axb5 {[%clk 0:00:25]} 42. Bxb5 {[%clk 0:00:19]}  Bd4 {[%clk 0:00:25]} 43. Rc7 {[%clk 0:00:18]}  Kf6 {[%clk 0:00:22]} 44. Bd3 {[%clk 0:00:10]}  Ke6 {[%clk 0:00:18]} 45. Bc4+ {[%clk 0:00:09]}  Kd6 {[%clk 0:00:18]} 46. Rxe7 {[%clk 0:00:06]}  Kxe7 {[%clk 0:00:19]} 47. Bd3 {[%clk 0:00:06]}  Kd6 {[%clk 0:00:19]} 48. a6 {[%clk 0:00:03]}  bxa6 {[%clk 0:00:18]} 49. b7 {[%clk 0:00:04]}  Kc7 {[%clk 0:00:18]} 50. Kf1 {[%clk 0:00:04]}  a5 {[%clk 0:00:18]} 51. Ke2 {[%clk 0:00:04]}  a4 {[%clk 0:00:18]} 52. Kd1 {[%clk 0:00:04]}  a3 {[%clk 0:00:19]} 53. Bc4 {[%clk 0:00:04]}  f5 {[%clk 0:00:10]} 54. Bd5 {[%clk 0:00:05]}  fxg4 {[%clk 0:00:11]} 55. Kc2 {[%clk 0:00:04]}  Bxf2 {[%clk 0:00:10]} 56. Kxc3 {[%clk 0:00:05]}  Bc5 {[%clk 0:00:07]} 57. Kb3 {[%clk 0:00:05]}  Bd6 {[%clk 0:00:07]} 58. Bg2 {[%clk 0:00:05]}  g3 {[%clk 0:00:07]} 59. Ka2 {[%clk 0:00:05]}  Kd7 {[%clk 0:00:08]} 60. Kb3 {[%clk 0:00:05]}  Ke6 {[%clk 0:00:08]} 61. b8=Q {[%clk 0:00:04]}  Bxb8 {[%clk 0:00:08]} 62. Kxa3 {[%clk 0:00:05]}  Ke5 {[%clk 0:00:09]} 63. Kb3 {[%clk 0:00:05]}  Kf4 {[%clk 0:00:10]} 64. Kc2 {[%clk 0:00:05]}  Ke3 {[%clk 0:00:11]} 65. Kd1 {[%clk 0:00:04]}  Kf2 {[%clk 0:00:12]} 66. Be4 {[%clk 0:00:04]}  g2 {[%clk 0:00:13]} 67. Bxg2 {[%clk 0:00:04]}  Kxg2 {[%clk 0:00:13]} 68. Ke2 {[%clk 0:00:05]}  Be5 {[%clk 0:00:14]} 0-1


[Site "https://www.chess.com"]

[Event "Titled Tuesday Blitz April 26 Late 2022"]
[White "Carrasco Miranda, Andres"]
[Black "D`Arruda, Ricardo D."]
[WhiteFideId "3405990"]
[BlackFideId "100692"]
[WhiteElo "2177"]
[BlackElo "2366"]
[Result "0-1"]
[Round "08"]
[TimeControl "180+1"]
[Date "2022.04.26"]
[WhiteClock "0:00:16"]
[BlackClock "0:01:03"]

1. d4 {[%clk 0:03:00]}  Nf6 {[%clk 0:02:57]} 2. c4 {[%clk 0:03:00]}  e5 {[%clk 0:02:57]} 3. dxe5 {[%clk 0:03:00]}  Ne4 {[%clk 0:02:57]} 4. a3 {[%clk 0:02:59]}  Nc6 {[%clk 0:02:57]} 5. Nf3 {[%clk 0:02:59]}  d6 {[%clk 0:02:56]} 6. Bf4 {[%clk 0:02:58]}  g5 {[%clk 0:02:55]} 7. Bg3 {[%clk 0:02:54]}  Bg7 {[%clk 0:02:51]} 8. Nbd2 {[%clk 0:02:46]}  Nxg3 {[%clk 0:02:50]} 9. hxg3 {[%clk 0:02:46]}  Nxe5 {[%clk 0:02:50]} 10. Nxe5 {[%clk 0:02:46]}  Bxe5 {[%clk 0:02:51]} 11. Qc2 {[%clk 0:02:45]}  h6 {[%clk 0:02:51]} 12. f4 {[%clk 0:02:38]}  Bg7 {[%clk 0:02:47]} 13. O-O-O {[%clk 0:02:37]}  Bd7 {[%clk 0:02:37]} 14. e3 {[%clk 0:01:51]}  Qe7 {[%clk 0:02:34]} 15. Bd3 {[%clk 0:01:41]}  O-O-O {[%clk 0:02:31]} 16. Be4 {[%clk 0:01:36]}  Rde8 {[%clk 0:02:22]} 17. Qb3 {[%clk 0:01:17]}  c6 {[%clk 0:02:22]} 18. Rhe1 {[%clk 0:01:11]}  Kc7 {[%clk 0:02:19]} 19. Qd3 {[%clk 0:01:06]}  Qf6 {[%clk 0:02:14]} 20. Qc2 {[%clk 0:01:05]}  Re7 {[%clk 0:02:08]} 21. Bf3 {[%clk 0:00:58]}  Rhe8 {[%clk 0:02:01]} 22. Nf1 {[%clk 0:00:32]}  Bf5 {[%clk 0:01:25]} 23. Qd2 {[%clk 0:00:32]}  Be4 {[%clk 0:01:19]} 24. Bxe4 {[%clk 0:00:21]}  Rxe4 {[%clk 0:01:20]} 25. Re2 {[%clk 0:00:19]}  Rxc4+ {[%clk 0:01:18]} 26. Kb1 {[%clk 0:00:19]}  d5 {[%clk 0:01:18]} 27. Qa5+ {[%clk 0:00:16]}  Kb8 {[%clk 0:01:15]} 28. Nd2 {[%clk 0:00:16]}  Qxb2# {[%clk 0:01:03]} 0-1


[Site "https://www.chess.com"]

[Event "Titled Tuesday Blitz April 26 Late 2022"]
[White "Chuemsakul, Sarocha"]
[Black "Hardaway, Brewington"]
[WhiteFideId "6203710"]
[BlackFideId "30941849"]
[WhiteElo "1703"]
[BlackElo "1768"]
[Result "1-0"]
[Round "08"]
[TimeControl "180+1"]
[Date "2022.04.26"]
[WhiteClock "0:00:16"]
[BlackClock "0:00:41"]

1. d4 {[%clk 0:03:00]}  Nf6 {[%clk 0:02:57]} 2. c4 {[%clk 0:03:00]}  e6 {[%clk 0:02:56]} 3. Nf3 {[%clk 0:03:01]}  b6 {[%clk 0:02:55]} 4. g3 {[%clk 0:03:00]}  Bb7 {[%clk 0:02:54]} 5. Bg2 {[%clk 0:03:00]}  c5 {[%clk 0:02:54]} 6. O-O {[%clk 0:02:54]}  cxd4 {[%clk 0:02:54]} 7. Nxd4 {[%clk 0:02:55]}  Bxg2 {[%clk 0:02:52]} 8. Kxg2 {[%clk 0:02:56]}  Qc8 {[%clk 0:02:52]} 9. Nc3 {[%clk 0:02:53]}  Qxc4 {[%clk 0:02:52]} 10. Qd3 {[%clk 0:02:14]}  Qxd3 {[%clk 0:02:49]} 11. exd3 {[%clk 0:02:15]}  Na6 {[%clk 0:02:44]} 12. a3 {[%clk 0:02:09]}  O-O-O {[%clk 0:02:35]} 13. Be3 {[%clk 0:02:07]}  Kb7 {[%clk 0:02:34]} 14. b4 {[%clk 0:02:06]}  Nc7 {[%clk 0:02:30]} 15. Rfc1 {[%clk 0:02:00]}  Ncd5 {[%clk 0:02:25]} 16. Nxd5 {[%clk 0:01:58]}  Nxd5 {[%clk 0:02:26]} 17. Bd2 {[%clk 0:01:58]}  Be7 {[%clk 0:02:25]} 18. h4 {[%clk 0:01:53]}  Bf6 {[%clk 0:02:25]} 19. Be3 {[%clk 0:01:49]}  Nxe3+ {[%clk 0:02:23]} 20. fxe3 {[%clk 0:01:50]}  Bxd4 {[%clk 0:02:23]} 21. exd4 {[%clk 0:01:50]}  Rc8 {[%clk 0:02:24]} 22. Kf3 {[%clk 0:01:47]}  Rxc1 {[%clk 0:02:23]} 23. Rxc1 {[%clk 0:01:47]}  Rc8 {[%clk 0:02:24]} 24. Ra1 {[%clk 0:01:43]}  Ka6 {[%clk 0:02:13]} 25. a4 {[%clk 0:01:43]}  Rc3 {[%clk 0:02:10]} 26. Ke3 {[%clk 0:01:42]}  Rb3 {[%clk 0:02:07]} 27. b5+ {[%clk 0:01:36]}  Kb7 {[%clk 0:02:07]} 28. g4 {[%clk 0:01:27]}  Rb2 {[%clk 0:02:05]} 29. h5 {[%clk 0:01:21]}  f6 {[%clk 0:01:55]} 30. Kf3 {[%clk 0:01:08]}  Rb4 {[%clk 0:01:51]} 31. Ke3 {[%clk 0:01:07]}  d5 {[%clk 0:01:44]} 32. g5 {[%clk 0:00:39]}  f5 {[%clk 0:01:30]} 33. g6 {[%clk 0:00:28]}  h6 {[%clk 0:01:28]} 34. Kf4 {[%clk 0:00:26]}  Rxd4+ {[%clk 0:01:20]} 35. Ke5 {[%clk 0:00:26]}  Rxd3 {[%clk 0:01:20]} 36. Kxe6 {[%clk 0:00:26]}  f4 {[%clk 0:01:14]} 37. Kf7 {[%clk 0:00:27]}  f3 {[%clk 0:01:07]} 38. Rf1 {[%clk 0:00:23]}  d4 {[%clk 0:01:02]} 39. Kxg7 {[%clk 0:00:23]}  Re3 {[%clk 0:01:03]} 40. Kxh6 {[%clk 0:00:22]}  d3 {[%clk 0:00:52]} 41. g7 {[%clk 0:00:23]}  d2 {[%clk 0:00:42]} 42. g8=Q {[%clk 0:00:20]}  Re1 {[%clk 0:00:42]} 43. Qf7+ {[%clk 0:00:18]}  Kc8 {[%clk 0:00:42]} 44. Qf5+ {[%clk 0:00:16]}  Kc7 {[%clk 0:00:41]} 45. Qf4+ {[%clk 0:00:16]}  Kd7 {[%clk 0:00:41]} 1-0


[Site "https://www.chess.com"]